bitfinex/quotes_ETHUSD_20250324
["timestamp","ask_amount","ask_price","bid_price","bid_amount"]
[1742841011922,6.23872987,2087.5,2087.4,5.3316]
[1742841012083,4.72317587,2087.5,2087.4,5.3316]
[1742841014497,4.72317587,2087.5,2087.4,0.7196]
[1742841014698,4.72317587,2087.5,2087.4,5.3306]
[1742841019239,5.27317587,2087.5,2087.4,0.7196]
[1742841019397,6.09357587,2087.5,2087.4,5.3306]
[1742841019594,8.17991646,2087.5,2087.4,5.3306]
[1742841022850,14.18991646,2087.5,2087.4,5.3306]
[1742841024149,14.18991646,2087.5,2087.4,0.7196]
[1742841024355,5.60833,2087.1,2087.0,25.322]
[1742841024567,7.198254,2087.1,2087.0,29.933]
[1742841024930,7.198254,2087.1,2087.0,25.322]
[1742841025131,7.198254,2087.1,2087.0,29.933]
[1742841025923,4.79133,2087.1,2087.0,29.933]
[1742841028058,4.7909,2087.3,2087.0,29.933]
[1742841028261,4.79066,2087.4,2087.1,0.8076]
[1742841028434,9.581,2087.5,2087.1,5.59892]
[1742841028631,4.79042,2087.5,2087.1,0.8076]
[1742841028831,4.79042,2087.5,2087.2,4.032349]
[1742841029427,4.79073,2087.4,2087.2,4.032349]
[1742841029841,4.79073,2087.4,2087.1,0.8076]
[1742841030632,4.79095,2087.3,2087.1,0.8076]
[1742841032460,4.7911,2087.2,2087.0,25.322]
[1742841032643,4.79095,2087.3,2087.1,4.61]
[1742841032843,9.58154,2087.4,2087.2,0.7992]
[1742841033044,4.79049,2087.5,2087.2,0.7992]
[1742841033535,5.56435,2087.7,2087.2,0.7992]
[1742841033536,4.78967,2087.9,2087.4,5.54747]
[1742841033735,4.78993,2087.8,2087.4,0.7569]
[1742841033940,4.78998,2087.7,2087.4,0.7569]
[1742841034156,4.7898,2087.8,2087.4,0.7569]
[1742841034564,4.78999,2087.7,2087.4,0.7569]
[1742841034874,4.79023,2087.6,2087.4,0.7569]
[1742841035070,4.78999,2087.7,2087.4,0.7569]
[1742841035364,4.7893,2088.0,2087.4,0.7569]
[1742841035573,4.79009,2087.7,2087.4,0.7569]
[1742841035928,4.78976,2087.8,2087.4,0.7569]
[1742841036162,4.79042,2087.5,2087.2,0.8176]
[1742841036461,4.79049,2087.5,2087.3,4.61]
[1742841036631,4.79021,2087.6,2087.3,5.4276]
[1742841037349,4.79008,2087.7,2087.3,6.928585]
[1742841037543,4.78929,2088.0,2087.4,4.79061]
[1742841037786,4.78955,2087.9,2087.5,0.8176]
[1742841038067,9.57878,2088.0,2087.5,5.6079]
[1742841038231,4.78935,2088.0,2087.5,5.6079]
[1742841038430,4.78935,2088.0,2087.5,5.60794]
[1742841038666,4.78935,2088.0,2087.5,2.318443]
[1742841038958,4.78961,2087.9,2087.5,2.318443]
[1742841039159,4.78931,2088.0,2087.5,7.108743]
[1742841039365,4.78881,2088.2,2087.7,0.7958]
[1742841039560,4.78906,2088.1,2087.8,4.609]
[1742841042085,9.57782,2088.2,2087.8,4.609]
[1742841042373,4.78883,2088.2,2087.8,4.609]
[1742841042982,4.78862,2088.3,2087.8,4.65689295]
[1742841043200,4.78862,2088.3,2087.9,0.7684]
[1742841043851,4.78842,2088.4,2087.9,0.7684]
[1742841044053,4.78818,2088.5,2088.0,4.83715017]
[1742841044359,4.78843,2088.4,2088.1,0.7684]
[1742841044554,9.57649,2088.5,2088.1,0.7684]
[1742841044899,4.78818,2088.5,2088.1,0.7684]
[1742841045108,4.78792,2088.6,2088.2,0.7584]
[1742841045288,4.78792,2088.6,2088.3,4.608]
[1742841046055,9.57506,2088.8,2088.4,0.8104]
[1742841046273,4.78772,2088.7,2088.4,0.8104]
[1742841046482,4.78789,2088.6,2088.4,0.8104]
[1742841046674,4.78768,2088.7,2088.4,0.8104]
[1742841047152,4.7875,2088.8,2088.4,0.8104]
[1742841047357,4.78767,2088.7,2088.4,0.8104]
[1742841048390,4.78798,2088.6,2088.4,0.8104]
[1742841048763,4.78799,2088.6,2088.4,0.8104]
[1742841050180,4.78812,2088.5,2088.2,0.8075]
[1742841050498,4.78812,2088.5,2088.3,4.607]
[1742841050984,4.78793,2088.6,2088.3,4.607]
[1742841051186,4.78812,2088.5,2088.3,4.607]
[1742841052788,4.7882,2088.5,2088.3,4.607]
[1742841053091,4.78835,2088.4,2088.3,4.607]
[1742841053590,4.78881,2088.2,2088.1,25.321]
[1742841053792,4.78881,2088.2,2088.1,29.928]
[1742841054371,4.78881,2088.2,2088.1,25.321]
[1742841054582,4.78881,2088.2,2088.1,29.927]
[1742841054978,5.60441,2088.2,2088.1,25.321]
[1742841055178,7.2742376,2088.2,2088.1,29.927]
[1742841056786,6.4586376,2088.2,2088.1,29.927]
[1742841057163,4.78881,2088.2,2088.1,29.927]
[1742841057594,4.78873,2088.3,2088.1,30.742]
[1742841058199,4.78867,2088.3,2088.1,30.742]
[1742841058497,9.57745,2088.3,2088.1,30.742]
[1742841058793,4.78867,2088.3,2088.1,30.742]
[1742841059691,4.78837,2088.4,2088.1,30.742]
[1742841059895,9.5769,2088.4,2088.1,30.742]
[1742841060217,4.78817,2088.5,2088.1,39.084108]
[1742841060783,4.78817,2088.5,2088.1,34.295148]
[1742841060987,4.78848,2088.4,2088.1,30.742]
[1742841061468,4.78854,2088.4,2088.1,30.742]
[1742841061868,4.7886,2088.3,2088.1,30.742]
[1742841062066,4.78881,2088.2,2088.1,30.742]
[1742841062288,4.78881,2088.2,2088.1,25.321]
[1742841062490,4.78881,2088.2,2088.1,29.927]
[1742841062687,9.57734,2088.3,2088.1,29.927]
[1742841062879,4.78861,2088.3,2088.1,29.927]
[1742841063078,4.78837,2088.4,2088.1,29.927]
[1742841063404,4.78836,2088.4,2088.1,29.927]
[1742841063704,4.78836,2088.4,2088.2,0.7936]
[1742841064415,9.57688,2088.4,2088.2,0.7936]
[1742841064613,4.78836,2088.4,2088.2,0.7936]
[1742841065723,9.57688,2088.4,2088.2,0.7936]
[1742841066078,4.78858,2088.3,2088.1,29.927]
[1742841066280,4.78881,2088.2,2088.1,25.321]
[1742841066788,4.78881,2088.2,2088.1,29.926]
[1742841066998,6.302987,2088.2,2088.1,29.926]
[1742841067379,7.079787,2088.2,2088.1,29.926]
[1742841067785,7.079787,2088.2,2088.1,25.321]
[1742841067991,7.079787,2088.2,2088.1,29.926]
[1742841068688,7.629787,2088.2,2088.1,25.321]
[1742841068899,7.629787,2088.2,2088.1,29.926]
[1742841075129,7.629787,2088.2,2088.1,4.605]
[1742841075330,4.78866,2088.3,2088.1,4.605]
[1742841075543,4.78831,2088.5,2088.1,4.605]
[1742841075723,9.57699,2088.4,2088.2,0.8283]
[1742841076439,4.78858,2088.3,2088.2,0.8283]
[1742841076930,9.57698,2088.4,2088.2,0.8283]
[1742841078005,4.78858,2088.3,2088.2,0.8283]
[1742841081239,4.78846,2088.4,2088.2,0.8283]
[1742841081735,4.78789,2088.6,2088.2,1.8553376]
[1742841081903,4.78789,2088.6,2088.2,6.69197357]
[1742841082613,4.78789,2088.6,2088.2,1.90322357]
[1742841083334,4.78767,2088.7,2088.3,4.78854]
[1742841083516,4.78767,2088.7,2088.4,1.43938776]
[1742841084828,9.57553,2088.7,2088.4,1.43938776]
[1742841085027,4.78767,2088.7,2088.4,1.43938776]
[1742841085337,4.78791,2088.6,2088.4,0.775]
[1742841085939,9.57643,2088.5,2088.3,25.314]
[1742841086113,4.78812,2088.5,2088.3,25.314]
[1742841087013,9.5764,2088.5,2088.3,25.314]
[1742841087320,4.78799,2088.6,2088.3,25.314]
[1742841087627,4.78813,2088.5,2088.3,25.314]
[1742841087808,9.57606,2088.6,2088.3,25.314]
[1742841088302,4.78813,2088.5,2088.3,25.314]
[1742841089319,4.78796,2088.6,2088.3,25.314]
[1742841089527,9.57603,2088.6,2088.3,25.314]
[1742841090528,4.78825,2088.5,2088.3,25.314]
[1742841090729,9.57654,2088.5,2088.3,25.314]
[1742841091135,4.78835,2088.4,2088.3,25.314]
[1742841091323,4.7879,2088.6,2088.3,25.314]
[1742841091529,4.7879,2088.6,2088.3,28.861602]
[1742841091730,9.57596,2088.6,2088.3,28.861602]
[1742841092118,4.78819,2088.5,2088.3,25.314]
[1742841093626,4.78797,2088.6,2088.3,25.314]
[1742841093827,9.57603,2088.6,2088.3,25.314]
[1742841095025,4.78797,2088.6,2088.3,25.314]
[1742841095226,4.78797,2088.6,2088.4,0.7933]
[1742841095744,9.57606,2088.6,2088.4,0.7933]
[1742841096946,4.78812,2088.5,2088.4,0.7933]
[1742841097652,4.78812,2088.5,2088.3,25.314]
[1742841099247,4.78812,2088.5,2088.2,26.0701]
[1742841102271,4.78858,2088.3,2087.7,0.7814]
[1742841102431,5.57598,2088.3,2087.6,4.602]
[1742841102631,0.7874,2088.0,2087.6,4.602]
[1742841102958,4.7896,2087.9,2087.6,4.6499005]
[1742841103173,4.78934,2088.0,2087.6,4.602]
[1742841103838,4.7895,2087.9,2087.6,4.602]
[1742841104241,4.78973,2087.8,2087.7,4.602]
[1742841112790,4.78973,2087.8,2087.5,26.0984]
[1742841112791,4.79018,2087.6,2087.5,25.317]
[1742841112955,4.79018,2087.6,2087.5,29.92]
[1742841115192,4.51018,2087.6,2087.5,29.92]
[1742841115361,4.51018,2087.6,2087.5,25.317]
[1742841115362,5.51833,2087.6,2087.5,25.317]
[1742841115566,5.51833,2087.6,2087.5,29.92]
[1742841116583,4.51018,2087.6,2087.5,29.92]
[1742841120788,5.34138,2087.6,2087.5,4.603]
[1742841122296,5.34138,2087.6,2087.1,25.32]
[1742841122297,4.7911,2087.2,2087.1,25.32]
[1742841122479,4.7911,2087.2,2087.1,29.924]
[1742841124386,4.7911,2087.2,2087.1,25.32]
[1742841124591,4.7911,2087.2,2087.1,29.924]
[1742841125709,6.4039485,2087.2,2087.1,29.924]
[1742841126269,4.7911,2087.2,2087.1,29.924]
[1742841131209,10.8011,2087.2,2087.1,29.924]
[1742841135295,10.8011,2087.2,2087.1,4.604]
[1742841140033,6.11976,2087.0,2086.9,1.02486551]
[1742841140204,8.345988,2087.0,2086.9,5.62986551]
[1742841140407,8.345988,2087.0,2086.9,4.605]
[1742841143526,7.567788,2087.0,2086.9,4.605]
[1742841144104,4.79156,2087.0,2086.9,4.605]
[1742841151137,4.79156,2087.0,2086.5,0.7873]
[1742841151138,4.79248,2086.6,2086.5,0.7873]
[1742841151318,4.79271,2086.5,2086.4,25.33]
[1742841151513,4.79271,2086.5,2086.4,29.935]
[1742841152538,4.79271,2086.5,2086.4,25.33]
[1742841152743,9.58512,2086.6,2086.4,29.935]
[1742841153236,4.79248,2086.6,2086.4,29.935]
[1742841153413,4.79271,2086.5,2086.4,29.935]
[1742841153941,4.79248,2086.6,2086.4,29.935]
[1742841154241,4.79271,2086.5,2086.4,29.935]
[1742841157242,4.79256,2086.6,2086.4,29.935]
[1742841157418,4.79271,2086.5,2086.4,29.935]
[1742841158546,6.301237,2086.5,2086.4,29.935]
[1742841161349,5.34271,2086.5,2086.4,29.935]
[1742841163439,4.79271,2086.5,2086.4,29.935]
[1742841163646,4.79254,2086.6,2086.4,29.935]
[1742841166428,0.7522,2087.5,2086.5,0.7977]
[1742841166656,4.79138,2087.1,2086.6,0.84561574]
[1742841166959,4.7911,2087.2,2086.8,0.7977]
[1742841167159,4.7911,2087.2,2086.9,5.163988]
[1742841167731,9.58231,2087.2,2086.9,5.163988]
[1742841167936,4.79134,2087.1,2086.9,4.605]
[1742841169266,4.7911,2087.2,2086.9,4.605]
[1742841170733,4.79143,2087.1,2086.9,4.605]
[1742841177485,4.79066,2087.4,2087.0,0.8083]
[1742841177641,4.79056,2087.5,2087.0,0.8083]
[1742841177840,9.5812,2087.5,2087.0,0.8083]
[1742841178234,4.7907,2087.4,2087.0,0.8083]
[1742841178643,4.79092,2087.3,2087.0,0.8083]
[1742841179569,4.79092,2087.3,2086.9,4.605]
[1742841179777,4.79066,2087.4,2086.9,6.1986279]
[1742841180067,9.58141,2087.4,2086.9,6.1986279]
[1742841180367,4.79089,2087.3,2086.9,6.1986279]
[1742841181467,4.79066,2087.4,2086.9,6.1986279]
[1742841181643,4.79096,2087.3,2086.9,6.1986279]
[1742841181844,4.79112,2087.2,2086.9,5.3952]
[1742841182046,9.5824,2087.2,2086.9,5.3952]
[1742841182250,4.79112,2087.2,2086.9,5.3952]
[1742841183367,4.79089,2087.3,2086.9,5.3952]
[1742841184057,4.79112,2087.2,2086.9,5.3952]
[1742841185676,9.58243,2087.2,2086.9,5.3952]
[1742841186176,4.79136,2087.1,2086.9,4.605]
[1742841186376,4.79156,2087.0,2086.9,4.605]
[1742841186578,4.79187,2086.9,2086.7,0.7721]
[1742841186778,9.58443,2086.8,2086.6,25.33]
[1742841186981,9.58443,2086.8,2086.7,4.604]
[1742841188082,4.79225,2086.7,2086.6,25.33]
[1742841188254,4.79225,2086.7,2086.6,29.933]
[1742841192889,4.79225,2086.7,2086.6,4.603]
[1742841197794,4.79294,2086.4,2086.2,25.332]
[1742841197987,4.79317,2086.3,2086.2,25.332]
[1742841198192,4.79317,2086.3,2086.2,29.936]
[1742841199972,4.79406,2086.0,2085.7,0.8001]
[1742841200183,4.79406,2086.0,2085.8,4.604]
[1742841200385,4.7941,2085.9,2085.7,0.8001]
[1742841200586,4.79443,2085.8,2085.5,0.7586]
[1742841200870,9.58893,2085.8,2085.6,4.604]
[1742841201096,9.58892,2085.8,2085.6,4.604]
[1742841201595,4.79443,2085.8,2085.6,4.604]
[1742841201802,9.58894,2085.8,2085.6,4.604]
[1742841201980,9.58892,2085.8,2085.6,4.604]
[1742841202603,4.79443,2085.8,2085.6,4.604]
[1742841202899,4.79342,2086.2,2085.7,0.7942]
[1742841203101,4.79364,2086.1,2085.7,5.58867]
[1742841203804,4.79364,2086.1,2085.7,0.7942]
[1742841204002,4.79395,2086.0,2085.7,0.7942]
[1742841204297,0.94553865,2086.2,2085.7,5.58868]
[1742841204500,4.79364,2086.1,2085.8,1.11997866]
[1742841205199,5.73901865,2086.2,2085.8,1.11997866]
[1742841205583,5.73901865,2086.2,2085.9,0.7554]
[1742841205986,10.53258865,2086.2,2085.9,0.7554]
[1742841206179,10.53261865,2086.2,2085.9,0.7554]
[1742841206381,5.73901865,2086.2,2085.9,0.7554]
[1742841206704,4.79348,2086.2,2085.9,0.7554]
[1742841207203,9.58704,2086.2,2085.9,0.7554]
[1742841207407,4.79348,2086.2,2085.9,0.7554]
[1742841208078,9.58622,2086.4,2085.9,6.58859874]
[1742841208499,4.79321,2086.3,2085.9,6.58859874]
[1742841209495,4.79321,2086.3,2085.9,1.79458874]
[1742841213177,4.79342,2086.2,2085.9,1.79458874]
[1742841213377,4.79321,2086.3,2085.9,1.79458874]
[1742841214377,4.79321,2086.3,2085.9,6.58867874]
[1742841216187,4.79321,2086.3,2085.9,1.79458874]
[1742841216507,10.80297,2086.4,2085.9,6.58853874]
[1742841216680,10.80297,2086.4,2086.0,3.72020372]
[1742841216876,6.01,2086.4,2086.2,0.7895]
[1742841217114,10.80272,2086.5,2086.2,0.7895]
[1742841217310,4.79303,2086.4,2086.2,0.7895]
[1742841217682,6.01,2086.5,2086.2,5.58282]
[1742841217878,6.01,2086.5,2086.3,1.018682]
[1742841218185,6.01,2086.5,2086.2,0.7895]
[1742841218387,10.80282,2086.5,2086.2,0.7895]
[1742841220916,6.01,2086.5,2086.2,0.7895]
[1742841222016,9.58514,2086.6,2086.2,0.7895]
[1742841222585,4.79249,2086.6,2086.2,0.7895]
[1742841222786,4.79274,2086.5,2086.2,2.65482309]
[1742841223015,9.58518,2086.6,2086.2,2.65482309]
[1742841223219,15.59473,2086.7,2086.2,2.65482309]
[1742841223514,10.80229,2086.7,2086.2,2.65482309]
[1742841223720,4.79257,2086.6,2086.2,2.65482309]
[1742841224012,4.79257,2086.6,2086.3,1.68459431]
[1742841224514,10.80229,2086.7,2086.3,1.68459431]
[1742841224691,10.80228,2086.7,2086.3,1.68459431]
[1742841224890,15.59469,2086.7,2086.3,1.68459431]
[1742841225219,4.7925,2086.6,2086.3,1.68459431]
[1742841226897,10.80229,2086.7,2086.3,1.68459431]
[1742841227299,4.79251,2086.6,2086.3,1.68459431]
[1742841227920,4.7926,2086.6,2086.3,1.68459431]
[1742841228519,15.59469,2086.7,2086.3,1.68459431]
[1742841228689,4.7925,2086.6,2086.3,1.68459431]
[1742841229510,9.5852,2086.6,2086.3,1.68459431]
[1742841229910,4.7925,2086.6,2086.3,1.68459431]
[1742841231301,4.7925,2086.6,2086.2,0.7895]
[1742841231497,4.7928,2086.5,2086.2,0.7895]
[1742841231702,9.58475,2086.7,2086.2,5.58275]
[1742841232029,4.79233,2086.7,2086.2,5.58275]
[1742841232232,4.79233,2086.7,2086.2,10.37604]
[1742841232432,4.79233,2086.7,2086.2,9.98178109]
[1742841232820,4.79249,2086.6,2086.2,9.98178109]
[1742841233624,4.79233,2086.7,2086.2,9.98178109]
[1742841233824,9.58475,2086.7,2086.2,9.98178109]
[1742841234136,4.79233,2086.7,2086.2,9.98178109]
[1742841234715,4.79233,2086.7,2086.3,4.79315]
[1742841235117,4.79233,2086.7,2086.4,0.7764]
[1742841237607,10.80163,2087.0,2086.6,0.774]
[1742841237934,10.80163,2087.0,2086.7,4.603]
[1742841238137,4.79195,2086.9,2086.7,4.603]
[1742841238437,9.5839,2086.9,2086.7,4.603]
[1742841238639,4.79195,2086.9,2086.7,4.603]
[1742841239236,4.79194,2086.9,2086.7,4.603]
[1742841239443,4.79202,2086.8,2086.7,4.603]
[1742841239641,6.351292,2086.9,2086.7,4.603]
[1742841240443,11.143262,2086.9,2086.7,4.603]
[1742841240844,6.351292,2086.9,2086.7,4.603]
[1742841242038,11.143262,2086.9,2086.7,4.603]
[1742841242246,1.7153262,2086.8,2086.7,4.603]
[1742841242645,9.5839,2086.9,2086.7,4.603]
[1742841243544,4.79202,2086.8,2086.7,4.603]
[1742841243842,4.79202,2086.8,2086.4,0.7666]
[1742841244013,4.79202,2086.8,2086.7,4.602]
[1742841244213,4.79194,2086.9,2086.7,4.602]
[1742841244214,4.79186,2086.9,2086.7,4.602]
[1742841244523,5.951886,2086.9,2086.7,4.602]
[1742841245124,4.79202,2086.8,2086.7,4.602]
[1742841246238,5.951886,2086.9,2086.7,4.602]
[1742841246439,10.743846,2086.9,2086.7,4.602]
[1742841246645,10.80159,2087.0,2086.7,5.4269]
[1742841248009,4.79187,2086.9,2086.7,5.4269]
[1742841248714,4.79202,2086.8,2086.7,4.602]
[1742841249148,4.79237,2086.7,2086.3,0.7553]
[1742841249312,4.79261,2086.6,2086.3,0.7553]
[1742841249666,4.79277,2086.5,2086.4,4.602]
[1742841249945,4.79277,2086.5,2086.2,25.336]
[1742841249946,4.79304,2086.4,2086.2,25.336]
[1742841250148,4.79281,2086.5,2086.3,4.602]
[1742841251320,4.79294,2086.4,2086.3,4.602]
[1742841251917,4.79294,2086.4,2086.2,25.336]
[1742841252150,4.79294,2086.4,2086.3,4.601]
[1742841252340,4.79317,2086.3,2086.2,25.336]
[1742841252650,4.79317,2086.3,2086.2,29.938]
[1742841257763,14.280525,2086.3,2086.2,25.336]
[1742841257923,14.280525,2086.3,2086.2,29.938]
[1742841266232,14.280525,2086.3,2086.2,4.602]
[1742841266949,4.79419,2085.9,2085.7,0.7829]
[1742841267148,4.79419,2085.9,2085.8,4.602]
[1742841270872,4.79419,2085.9,2085.8,4.602]
[1742841271067,4.79419,2085.9,2085.5,26.1233]
[1742841271068,4.79478,2085.6,2085.5,26.1233]
[1742841271269,4.79444,2085.8,2085.5,30.7253]
[1742841271457,4.79444,2085.8,2085.5,35.5203]
[1742841271660,4.7941,2085.9,2085.5,35.5203]
[1742841272144,4.7941,2085.9,2085.5,39.53193]
[1742841272343,4.7941,2085.9,2085.6,4.78443488]
[1742841273241,0.55,2086.1,2085.6,4.736493]
[1742841273443,4.7941,2085.9,2085.6,0.7833]
[1742841274844,9.5884,2085.9,2085.6,0.7833]
[1742841275041,4.79468,2085.7,2085.5,25.34]
[1742841275386,5.59278,2086.0,2085.6,4.602]
[1742841275541,4.79468,2085.7,2085.6,4.602]
[1742841278180,4.79393,2086.0,2085.7,0.7732]
[1742841278385,9.58796,2086.0,2085.7,0.7732]
[1742841278564,4.79393,2086.0,2085.7,0.7732]
[1742841279085,4.79417,2085.9,2085.7,0.7732]
[1742841279788,9.58843,2085.9,2085.7,0.7732]
[1742841283792,4.79395,2086.0,2085.7,0.803]
[1742841284462,6.01,2086.2,2085.7,0.803]
[1742841284658,4.79424,2085.9,2085.7,0.803]
[1742841286090,4.79432,2085.8,2085.7,0.803]
[1742841286272,4.79432,2085.8,2085.6,4.602]
[1742841288388,9.58883,2085.8,2085.6,4.602]
[1742841288782,4.79432,2085.8,2085.6,4.602]
[1742841288990,4.79455,2085.7,2085.6,4.602]
[1742841289564,4.79432,2085.8,2085.6,4.602]
[1742841289765,9.5888,2085.8,2085.6,4.602]
[1742841290493,4.79455,2085.7,2085.6,4.602]
[1742841290996,4.79432,2085.8,2085.6,4.602]
[1742841291298,9.58885,2085.8,2085.6,4.602]
[1742841291968,4.79432,2085.8,2085.6,4.602]
[1742841292169,9.5888,2085.8,2085.6,4.602]
[1742841293699,4.79455,2085.7,2085.6,4.602]
[1742841294798,4.79432,2085.8,2085.6,4.602]
[1742841294973,9.58879,2085.8,2085.6,4.602]
[1742841296403,4.79455,2085.7,2085.6,4.602]
[1742841302379,4.79524,2085.4,2085.3,1.02565186]
[1742841302579,4.79524,2085.4,2085.3,5.62565186]
[1742841303278,4.79508,2085.5,2085.3,5.62565186]
[1742841303901,9.59025,2085.5,2085.3,5.62565186]
[1742841304113,4.79508,2085.5,2085.3,5.62565186]
[1742841304313,4.79524,2085.4,2085.3,5.62565186]
[1742841304493,5.62034,2085.4,2085.3,5.62565186]
[1742841304805,5.62034,2085.4,2085.3,4.6]
[1742841306030,4.79547,2085.3,2085.2,25.344]
[1742841306192,4.79547,2085.3,2085.2,29.944]
[1742841309116,5.34547,2085.3,2085.2,25.344]
[1742841309305,7.03295257,2085.3,2085.2,29.944]
[1742841309501,4.79615,2085.1,2084.9,0.8211]
[1742841309707,4.79615,2085.1,2085.0,4.6]
[1742841310212,4.79613,2085.1,2085.0,4.6]
[1742841310417,4.79626,2085.0,2084.7,0.9000724]
[1742841310613,4.79655,2084.9,2084.8,4.6]
[1742841310812,4.79662,2084.8,2084.7,0.1228724]
[1742841310994,4.79662,2084.8,2084.7,4.7228724]
[1742841312288,10.80662,2084.8,2084.7,4.7228724]
[1742841312490,12.901556,2084.8,2084.7,4.7228724]
[1742841317524,14.253656,2084.8,2084.7,4.7238724]
[1742841319195,11.35662,2084.8,2084.7,4.7238724]
[1742841319398,12.12672,2084.8,2084.7,4.7238724]
[1742841320096,12.12672,2084.8,2084.7,0.1228724]
[1742841320289,12.17742,2084.8,2084.7,0.1228724]
[1742841320916,15.17742,2084.8,2084.7,0.1228724]
[1742841321096,17.654436,2084.8,2084.7,0.1228724]
[1742841322294,17.654436,2084.8,2084.7,2.4e-06]
[1742841323417,14.104436,2084.8,2084.7,4.6010024]
[1742841323619,10.80662,2084.8,2084.7,4.6010024]
[1742841325992,6.01,2084.9,2084.7,4.6010024]
[1742841326197,6.57986926,2085.1,2084.7,4.6010024]
[1742841326198,4.79601,2085.1,2084.7,4.6010024]
[1742841326419,4.79577,2085.2,2084.8,0.7999]
[1742841326620,4.79573,2085.2,2084.8,1.33999024]
[1742841326924,4.79604,2085.1,2084.8,1.33999024]
[1742841327300,4.79571,2085.2,2084.8,1.33999024]
[1742841327531,6.01,2085.3,2084.8,6.18448071]
[1742841327532,10.80552,2085.3,2084.8,6.18448071]
[1742841327709,10.80552,2085.3,2084.8,6.13652024]
[1742841328132,4.79582,2085.2,2084.8,1.33999024]
[1742841328328,10.80554,2085.3,2084.8,6.18449073]
[1742841328540,15.60115,2085.3,2084.8,6.13653024]
[1742841328733,4.79574,2085.2,2084.8,6.13653024]
[1742841329105,15.60121,2085.3,2084.8,6.13653024]
[1742841329413,10.80554,2085.3,2084.8,6.13653024]
[1742841329813,10.80554,2085.3,2084.8,6.13649024]
[1742841330002,10.80554,2085.3,2084.9,0.81625103]
[1742841330451,10.80554,2085.3,2085.0,0.7877]
[1742841331535,0.29097257,2085.2,2085.0,0.7877]
[1742841331839,10.80554,2085.3,2085.0,0.7877]
[1742841332052,0.28793414,2085.1,2085.0,0.7877]
[1742841332209,3.18906275,2085.5,2085.0,0.7877]
[1742841332210,4.79514,2085.5,2085.0,6.27780913]
[1742841332411,0.28782501,2085.1,2085.0,6.27780913]
[1742841332717,4.79514,2085.5,2085.0,6.27780913]
[1742841332914,0.28923002,2085.4,2085.0,5.49005913]
[1742841333145,6.01,2085.6,2085.3,0.7665]
[1742841333334,6.01,2085.6,2085.4,4.6]
[1742841333335,0.28993037,2085.5,2085.4,4.6]
[1742841336315,5.08494037,2085.5,2085.4,4.6]
[1742841337244,0.28993037,2085.5,2085.4,4.6]
[1742841337644,0.28993037,2085.5,2085.4,9.44319168]
[1742841337848,0.28993037,2085.5,2085.4,11.16730917]
[1742841338015,15.59842,2085.9,2085.4,11.16730917]
[1742841338211,0.29031604,2085.5,2085.4,11.16730917]
[1742841338416,15.59842,2085.9,2085.4,11.16730917]
[1742841338662,0.28922617,2085.5,2085.4,11.16730917]
[1742841338965,0.28924699,2085.5,2085.4,11.16730917]
[1742841339148,4.79433,2085.8,2085.4,11.16730917]
[1742841339317,0.29013412,2085.7,2085.4,6.37206917]
[1742841339517,4.79457,2085.7,2085.4,6.37206917]
[1742841339739,0.28934585,2085.6,2085.4,6.37206917]
[1742841340141,5.08413585,2085.6,2085.4,0.7511]
[1742841340344,5.08413585,2085.6,2085.5,4.599]
[1742841340549,4.79525,2085.4,2085.2,0.7713]
[1742841340717,4.79525,2085.4,2085.3,4.599]
[1742841340917,4.79525,2085.4,2085.0,0.7713]
[1742841340918,9.59163,2085.2,2085.0,0.7713]
[1742841341119,4.79576,2085.2,2085.1,4.599]
[1742841341745,4.79556,2085.3,2085.1,4.599]
[1742841342251,5.834307,2085.4,2085.1,4.599]
[1742841342415,10.629727,2085.4,2085.1,4.599]
[1742841343120,4.79549,2085.3,2085.1,4.599]
[1742841343951,5.834307,2085.4,2085.1,4.599]
[1742841344140,4.79548,2085.3,2085.1,4.599]
[1742841345847,5.834307,2085.4,2085.1,4.599]
[1742841347222,10.629717,2085.4,2085.1,4.599]
[1742841347422,1.6639717,2085.3,2085.1,4.599]
[1742841347623,5.834307,2085.4,2085.1,4.599]
[1742841347851,6.01,2085.5,2085.2,5.63200582]
[1742841348045,4.7944,2085.8,2085.2,0.7885]
[1742841348256,4.79462,2085.7,2085.2,5.58412]
[1742841348628,4.79434,2085.8,2085.3,4.79538]
[1742841348827,4.79434,2085.8,2085.4,0.7885]
[1742841349136,4.79417,2085.9,2085.4,10.37882]
[1742841349322,4.79417,2085.9,2085.4,11.416702]
[1742841349526,4.79417,2085.9,2085.5,0.04794404]
[1742841349757,4.79417,2085.9,2085.6,4.599]
[1742841350059,0.2916391,2085.8,2085.6,4.599]
[1742841350578,0.2916391,2085.8,2085.7,0.7583]
[1742841351093,10.80386,2086.0,2085.7,0.7583]
[1742841351563,0.29271894,2085.9,2085.7,5.55283]
[1742841351739,0.29271894,2085.9,2085.7,7.09542487]
[1742841351936,4.79373,2086.1,2085.7,7.09542487]
[1742841352140,0.29372533,2086.0,2085.7,5.60076887]
[1742841352663,0.29372533,2086.0,2085.7,0.80623887]
[1742841352850,0.29372533,2086.0,2085.7,0.7583]
[1742841356543,5.08758533,2086.0,2085.7,0.7583]
[1742841356749,5.08758533,2086.0,2085.6,5.3626]
[1742841356949,5.08758533,2086.0,2085.6,6.9616602]